lending/lending_fUSD_20251111
["ID","MTS","AMOUNT","RATE_DAILY","PERIOD"]
[393592540,1762824690929,-500.0,0.00038713,30]
[393592541,1762824690989,-153.64,0.00038783,120]
[393592542,1762824691053,-880.02878388,0.000388,60]
[393592543,1762824691123,-266.90100162,0.0003884,50]
[393592544,1762824691189,-153.64,0.00038883,120]
[393592545,1762824691252,-867.9052,0.00038888,30]
[393592546,1762824691319,-999.0,0.00038904,120]
[393592547,1762824691389,-706.0,0.00038963,20]
[393592548,1762824691453,-153.64,0.00038983,120]
[393592549,1762824691512,-152.96695701,0.00039,120]
[393592550,1762824691571,-8000.0,0.00039,14]
[393592551,1762824691633,-157.0,0.00039,120]
[393592552,1762824691695,-157.0,0.00039,120]
[393592553,1762824691755,-500.0,0.00039021,30]
[393592554,1762824691819,-500.0,0.00039027,30]
[393592555,1762824691883,-500.0,0.0003903,30]
[393592556,1762824691947,-500.0,0.00039059,30]
[393592557,1762824692011,-153.64,0.00039083,120]
[393592558,1762824692073,-500.0,0.00039141,30]
[393592559,1762824692133,-150.0,0.00039153,120]
[393592560,1762824692203,-2743.42807203,0.0003918,120]
[393592561,1762824692271,-153.64,0.00039183,120]
[393592562,1762824692332,-500.0,0.00039229,120]
[393592563,1762824692391,-2500.0,0.00039238,14]
[393592564,1762824692452,-2500.0,0.00039238,14]
[393592565,1762824692512,-2500.0,0.00039238,14]
[393592566,1762824692572,-5800.0,0.00039244,14]
[393592567,1762824692638,-5800.0,0.00039252,14]
[393592568,1762824692698,-500.0,0.0003926,30]
[393592569,1762824692759,-245.49535761,0.00039264,120]
[393592570,1762824692825,-500.0,0.00039266,30]
[393592571,1762824692889,-206.33121688,0.00039283,120]
[393592572,1762824692953,-153.81,0.00039283,120]
[393592573,1762824693012,-326.51144885,0.000393,120]
[393592574,1762824693075,-162.58424941,0.000393,120]
[393592575,1762824693140,-1338.4222087,0.000393,120]
[393592576,1762824693202,-424.55315699,0.000393,120]
[393592577,1762824693263,-222.27190956,0.000393,120]
[393592578,1762824693322,-173.93257087,0.000393,120]
[393592579,1762824693385,-203.13093491,0.000393,120]
[393592580,1762824693451,-185.40060576,0.000393,120]
[393592581,1762824693516,-500.0,0.0003933,30]
[393592582,1762824693582,-706.0,0.00039365,20]
[393592583,1762824693635,-500.0,0.00039373,30]
[393592585,1762824693699,-500.0,0.00039408,30]
[393592586,1762824693761,-500.0,0.00039446,30]
[393592587,1762824693822,-500.0,0.00039447,30]
[393592588,1762824693882,-182.58422191,0.00039486,30]
[393592589,1762824693944,-611.88469907,0.00039503,30]
[393592590,1762824694010,-500.0,0.00039573,120]
[393592591,1762824694078,-212.70886383,0.00039573,120]
[393592592,1762824694144,-1266.23756213,0.00039605,11]
[393592593,1762824694210,-234.48550665,0.00039605,15]
[393592594,1762824694275,-163.99716146,0.00039605,13]
[393592595,1762824694340,-500.0,0.00039612,30]
[393592596,1762824694405,-500.0,0.00039632,30]
[393592597,1762824694470,-152.0,0.00039634,9]
[393592598,1762824694534,-211.3328822,0.00039648,120]
[393592599,1762824694598,-250.0,0.000397,14]
[393592600,1762824694661,-250.0,0.000397,14]
[393592601,1762824694722,-250.0,0.000397,14]
[393592602,1762824694780,-250.0,0.000397,14]
[393592603,1762824694839,-250.0,0.000397,14]
[393592604,1762824694898,-250.0,0.000397,14]
[393592605,1762824694956,-250.0,0.000397,14]
[393592606,1762824695016,-250.0,0.000397,14]
[393592607,1762824695075,-250.0,0.000397,14]
[393592608,1762824695135,-250.0,0.000397,14]
[393592609,1762824695355,-250.0,0.000397,14]
[393592610,1762824695416,-250.0,0.000397,14]
[393592611,1762824695475,-1000.0,0.00039701,120]
[393592612,1762824695534,-1000.0,0.00039701,120]
[393592613,1762824695592,-1000.0,0.00039701,120]
[393592614,1762824695653,-1000.0,0.00039701,120]
[393592615,1762824695713,-1000.0,0.00039701,120]
[393592616,1762824695784,-1000.0,0.00039701,120]
[393592617,1762824695849,-1000.0,0.00039701,120]
[393592618,1762824695916,-1000.0,0.00039701,120]
[393592619,1762824695982,-1000.0,0.00039701,120]
[393592620,1762824696049,-1000.0,0.00039701,120]
[393592621,1762824696114,-1000.0,0.00039701,120]
[393592622,1762824696175,-1000.0,0.00039701,120]
[393592623,1762824696235,-1000.0,0.00039701,120]
[393592624,1762824696296,-1000.0,0.00039701,120]
[393592625,1762824696358,-1000.0,0.00039701,120]
[393592626,1762824696420,-1000.0,0.00039701,120]
[393592627,1762824696482,-1000.0,0.00039701,120]
[393592628,1762824696545,-1000.0,0.00039701,120]
[393592629,1762824696609,-1000.0,0.00039701,120]
[393592630,1762824696674,-1000.0,0.00039701,120]
[393592631,1762824696743,-1000.0,0.00039701,120]
[393592632,1762824696807,-1000.0,0.00039701,120]
[393592633,1762824696876,-425.88516762,0.00039701,120]
[393592634,1762824696941,-157.63,0.00039702,120]
[393592635,1762824697025,-500.0,0.00039708,30]
[393592636,1762824697085,-210.0,0.00039708,7]
[393592637,1762824697147,-999.0,0.00039726,120]
[393592638,1762824697208,-706.0,0.00039766,20]
[393592639,1762824697275,-500.0,0.00039768,30]
[393592640,1762824697337,-1339.84,0.00039798,30]
[393592641,1762824697398,-500.0,0.00039812,30]
[393592642,1762824697462,-150.0,0.00039821,120]
[393592643,1762824697528,-500.0,0.00039847,30]
[393592644,1762824697594,-500.0,0.00039855,30]
[393592645,1762824697660,-210.0,0.00039867,7]
[393592646,1762824697724,-1216.16140457,0.0003988,120]
[393592647,1762824697784,-300.0,0.0003989,30]
[393592648,1762824697846,-206.33121688,0.00039892,120]
[393592649,1762824697906,-400.53896046,0.00039999,31]
[393592650,1762824697966,-445.94592211,0.00039999,31]
[393592651,1762824698026,-228.22271989,0.00039999,31]
[393592652,1762824698091,-506.76390802,0.00039999,31]
[393592653,1762824698153,-493.36908005,0.00039999,31]
[393592654,1762824698218,-500.0,0.00039999,31]
[393592655,1762824698284,-500.0,0.00039999,31]
[393592656,1762824698349,-500.0,0.00039999,31]
[393592657,1762824698412,-348.21596673,0.00039999,15]
[393592658,1762824698479,-588.72525265,0.00039999,31]
[393592659,1762824698547,-416.02289237,0.0004,7]
[393592660,1762824698616,-965.57973789,0.0004,7]
[393592661,1762824698685,-151.0,0.0004,7]
[393592662,1762824698748,-500.0,0.0004,10]
[393592663,1762824698809,-150.0,0.0004,10]
[393592664,1762824698874,-504.70846121,0.0004,10]
[393592665,1762824698938,-1498.21150556,0.0004,120]
[393592666,1762824699003,-249.39738673,0.0004,120]
[393592667,1762824699067,-366.18668053,0.0004,30]
[393592668,1762824699130,-291.5678362,0.0004,100]
[393592669,1762824699198,-250.01644342,0.0004,120]
[393592670,1762824699270,-1663.33959372,0.0004,30]
[393592671,1762824699339,-250.99340903,0.0004,30]
[393592672,1762824699405,-366.35305382,0.0004,30]
[393592673,1762824699473,-177.69939454,0.0004,120]
[393592674,1762824699539,-294.0109,0.0004,120]
[393592675,1762824699602,-477.50558027,0.0004,120]
[393592676,1762824699665,-500.00000001,0.0004,120]
[393592677,1762824699728,-500.000001,0.0004,120]
[393592678,1762824699794,-500.0,0.0004,100]
[393592679,1762824699857,-200.0,0.0004,120]
[393592680,1762824699920,-150.0,0.0004,120]
[393592681,1762824699984,-477.12749073,0.0004,30]
[393592682,1762824700047,-425.95440436,0.0004,30]
[393592683,1762824700106,-433.32779878,0.0004,120]
[393592684,1762824700166,-261.32528921,0.0004,120]
[393592685,1762824700225,-907.99537877,0.0004,120]
[393592686,1762824700287,-205.38409608,0.0004,30]
[393592687,1762824700347,-1900.64111389,0.0004,120]
[393592688,1762824700407,-181.23747044,0.0004,120]
[393592689,1762824700466,-712.82505339,0.0004,120]
[393592690,1762824700525,-150.0,0.0004,120]
[393592691,1762824700586,-1038.72266342,0.0004,120]
[393592692,1762824700645,-2913.99278169,0.0004,60]
[393592693,1762824700704,-1278.14,0.0004,120]
[393592694,1762824700762,-808.43,0.0004,120]
[393592695,1762824700821,-251.05,0.0004,120]
[393592696,1762824700882,-1148.03,0.0004,120]
[393592697,1762824700942,-485.1,0.0004,120]
[393592698,1762824701006,-537.1,0.0004,120]
[393592699,1762824701071,-1233.18,0.0004,120]
[393592700,1762824701134,-522.47784259,0.00040004,30]
[393592701,1762824701195,-500.0,0.00040013,30]
[393592702,1762824701261,-210.0,0.00040026,7]
[393592703,1762824701485,-500.0,0.00040041,30]
[393592704,1762824701551,-500.0,0.00040091,30]
[393592705,1762824701618,-150.04,0.00040111,120]
[393592706,1762824701678,-706.0,0.00040168,20]
[393592707,1762824701740,-544.7915568,0.00040171,30]
[393592708,1762824701805,-683.14822556,0.00040178,30]
[393592709,1762824701868,-210.0,0.00040184,7]
[393592710,1762824701934,-682.61814965,0.0004019,30]
[393592711,1762824701997,-150.0,0.00040192,120]
[393592712,1762824702059,-222.20097351,0.00040343,7]
[393592713,1762824702120,-326.51144885,0.000404,120]
[393592714,1762824702181,-162.58424941,0.000404,120]
[393592715,1762824702244,-1338.4222087,0.000404,120]
[393592716,1762824702311,-424.55315699,0.000404,120]
[393592717,1762824702385,-206.33121688,0.00040501,120]
[393592718,1762824702450,-150.0,0.00040536,120]
[393592719,1762824702513,-999.0,0.00040547,120]
[393592720,1762824702575,-706.0,0.0004057,20]
[393592721,1762824702638,-762.06141368,0.000408,120]
[393592722,1762824702700,-471.65013797,0.000408,60]
[393592723,1762824702763,-706.0,0.00040971,20]
[393592724,1762824702827,-150.0,0.00041,10]
[393592725,1762824702888,-1270.60022047,0.00041,30]
[393592726,1762824702952,-1032.86330912,0.00041,120]
[393592727,1762824703012,-150.0,0.00041,120]
[393592728,1762824703075,-1942.10152337,0.00041,120]
[393592729,1762824703136,-300.0,0.00041068,22]
[393592730,1762824703195,-1822.47,0.00041096,120]
[393592731,1762824703254,-774.07,0.00041096,120]
[393592732,1762824703312,-600.0,0.00041096,120]
[393592733,1762824704901,-193.03674943,0.00015,2]
[393592734,1762824705757,2195.21217614,0.00013,2]
[393592735,1762824707276,188.2432449,0.00014999,2]
[393592736,1762824707376,150.0,0.00017226,120]
[393592737,1762824707594,-2386.420076,0.00015,2]
[393592738,1762824707603,-92244.44476528,0.00015,2]
[393592739,1762824707619,-73352.76809097,0.00015,2]
[393592740,1762824707631,-88681.80211378,0.00015,2]
[393592741,1762824707641,-30217.75040068,0.00015,3]
[393592742,1762824707651,-65499.99999998,0.0001501,2]
[393592743,1762824707660,-1000.0,0.00017065,2]
[393592744,1762824707670,-500.0,0.00017165,2]
[393592745,1762824707679,-500.0,0.00017165,2]
[393592746,1762824707689,-500.0,0.00017165,2]
[393592747,1762824707699,-500.0,0.00017165,2]
[393592748,1762824707709,-500.0,0.00017165,2]
[393592749,1762824707719,-150.0,0.00017226,2]
[393592750,1762824707729,-151.66363284,0.000179,2]
[393592751,1762824707738,-16438.99360893,0.000179,2]
[393592752,1762824707750,-950.06454241,0.000179,2]
[393592753,1762824707761,-99829.75452687,0.000179,2]
[393592754,1762824707772,-10886.1790172,0.000179,2]
[393592755,1762824707784,-16987.06011217,0.000179,2]
[393592756,1762824707796,-672.88623794,0.000179,2]
[393592757,1762824707808,-2774.295589,0.000179,2]
[393592758,1762824707821,-500.0,0.000179,2]
[393592759,1762824707833,-606.86731396,0.000179,2]
[393592760,1762824707845,-5540.13994313,0.000179,2]
[393592761,1762824707856,-137702.27760298,0.000179,2]
[393592762,1762824707868,-3689.34651218,0.000179,2]
[393592763,1762824707879,-1830.49165783,0.000179,2]
[393592764,1762824708194,-41268.5987246,0.000179,2]
[393592765,1762824708206,-19566.46543479,0.000179,2]
[393592766,1762824708218,-1133.68197179,0.000179,2]
[393592767,1762824708231,-32020.21421943,0.000179,2]
[393592768,1762824708247,-3616.79486223,0.000179,2]
[393592769,1762824708261,-664.33890633,0.000179,2]
[393592770,1762824708281,-564.0886184,0.000179,2]
[393592771,1762824708294,-22757.46059783,0.000179,2]
[393592772,1762824708304,-500.0,0.00017966,2]
[393592773,1762824708316,-500.0,0.00017966,2]
[393592774,1762824708331,-628.14,0.00017999,2]
[393592775,1762824708572,-500.0,0.00017999,2]
[393592776,1762824708586,-179.54679155,0.00017999,2]
[393592777,1762824708596,-82023.3192669,0.00018,2]
[393592778,1762824708612,-1114.57566831,0.00018,2]
[393592779,1762824708623,-5791.75596425,0.00018,2]
[393592780,1762824708645,-743.74189545,0.00018,2]
[393592781,1762824708656,-6040.21632456,0.00018,2]
[393592782,1762824708668,-2015.62912163,0.00018,2]
[393592783,1762824708680,-4363.0435934,0.00018,2]
[393592784,1762824708692,-1191.91290476,0.00018,2]
[393592785,1762824708706,-928.37788794,0.00018,2]
[393592786,1762824708737,-14846.44879194,0.00018,2]
[393592787,1762824708759,-32745.42025123,0.00018,2]
[393592788,1762824708774,-28703.44614917,0.00018,2]
[393592789,1762824708788,-3789.41181935,0.00018,2]
[393592790,1762824708938,-4818.5510757,0.00018,2]
[393592791,1762824708949,-453.46300472,0.00018,2]
[393592792,1762824708961,-3815.45584585,0.00018,2]
[393592793,1762824708973,-804.31214879,0.00018,2]
[393592794,1762824708985,-165464.27492686,0.00018,2]
[393592807,1762824787755,-1891321.27696875,0.00018,2]
[393592808,1762824787766,-187.004419,0.00018,2]
[393592809,1762824787776,-151.0,0.00018,2]
[393592810,1762824787786,-151.0,0.00018,2]
[393592811,1762824787796,-216.017029,0.00018,2]
[393592812,1762824787807,-216.017029,0.00018,2]
[393592813,1762824787817,-216.017029,0.00018,2]
[393592814,1762824787826,-216.017029,0.00018,2]
[393592815,1762824787836,-492515.2840973,0.00018,2]
[393592816,1762824787846,-151.562,0.00018,2]
[393592817,1762824787855,-766.0,0.00018011,2]
[393592818,1762824787865,-174.0,0.00018046,2]
[393592819,1762824787875,-152.08,0.00018082,2]
[393592820,1762824787888,-836.0,0.00018152,2]
[393592821,1762824787898,-766.0,0.00018236,2]
[393592822,1762824787907,-592.3,0.00018251,2]
[393592823,1762824787917,-836.0,0.00018316,2]
[393592824,1762824787926,-766.0,0.00018345,2]
[393592825,1762824787936,-820.0,0.0001835,2]
[393592826,1762824787956,-1597.0,0.0001835,2]
[393592827,1762824787967,-1274.0,0.0001835,2]
[393592828,1762824787976,-813.0,0.0001835,2]
[393592829,1762824787987,-150.0,0.0001835,2]
[393592830,1762824787997,-150.0,0.0001835,2]
[393592831,1762824788008,-150.0,0.0001835,2]
[393592832,1762824788018,-500.0,0.0001835,2]
[393592833,1762824788028,-150.0,0.0001835,2]
[393592834,1762824788039,-150.0,0.0001835,2]
[393592835,1762824788049,-154.63310994,0.0001835,2]
[393592836,1762824788060,-150.0,0.0001835,2]
[393592837,1762824788071,-836.0,0.00018361,2]
[393592838,1762824788081,-697.69,0.00018375,2]
[393592839,1762824788091,-766.0,0.00018455,2]
[393592840,1762824788102,-766.0,0.00018476,2]
[393592841,1762824788112,-150.0,0.00018487,2]
[393592842,1762824788122,-150.0,0.00018487,2]
[393592843,1762824788133,-150.0,0.00018487,2]
[393592844,1762824788144,-500.0,0.00018487,2]
[393592845,1762824788154,-150.0,0.00018487,2]
[393592846,1762824788164,-150.0,0.00018487,2]
[393592847,1762824788174,-150.0,0.00018487,2]
[393592848,1762824788184,-1000.0,0.00018492,2]
[393592849,1762824788195,-836.0,0.00018498,2]
[393592850,1762824788205,-2371.873,0.00018501,2]
[393592851,1762824788215,-592.35,0.00018525,2]
[393592852,1762824788225,-638.0,0.00018548,2]
[393592853,1762824788236,-150.0,0.00018624,2]
[393592854,1762824788247,-150.0,0.00018624,2]
[393592855,1762824788261,-150.0,0.00018624,2]
[393592856,1762824788272,-250.0,0.00018624,2]
[393592857,1762824788283,-151.42196463,0.00018624,2]
[393592858,1762824788292,-150.0,0.00018624,2]
[393592859,1762824788303,-150.0,0.00018624,2]
[393592860,1762824788313,-153.85,0.00018754,2]
[393592861,1762824788323,-251.96937689,0.00018761,2]
[393592862,1762824788334,-150.0,0.00018761,2]
[393592863,1762824788346,-150.0,0.00018761,2]
[393592864,1762824788357,-155.99056556,0.00018761,2]
[393592865,1762824788367,-204.61057853,0.00018761,2]
[393592866,1762824788377,-489.02,0.00018798,2]
[393592867,1762824788390,-697.69,0.00018861,2]
[393592868,1762824788400,-150.0,0.00018898,2]
[393592869,1762824788410,-164.94975785,0.00018898,2]
[393592870,1762824788420,-766.0,0.00018948,2]
[393592871,1762824788429,-500.0,0.00018999,2]
[393592872,1762824788439,-211.3368877,0.00019,2]
[393592873,1762824788449,-72152.34804435,0.00019,2]
[393592874,1762824788459,-300.0,0.00019,2]
[393592875,1762824788470,-169.12,0.00019,2]
[393592876,1762824788480,-151.0,0.00019,2]
[393592877,1762824788491,-216.017029,0.00019,2]
[393592878,1762824788501,-216.017029,0.00019,2]
[393592879,1762824788511,-216.017029,0.00019,2]
[393592880,1762824788522,-216.017029,0.00019,2]
[393592881,1762824788531,-5121.90712488,0.00019,2]
[393592882,1762824788541,-205.45059285,0.00019035,2]
[393592883,1762824788551,-836.0,0.00019059,2]
[393592884,1762824788562,-989.0,0.00019067,2]
[393592885,1762824788573,-152.08,0.00019438,2]
[393592886,1762824788584,-200.0,0.00019592,2]
[393592887,1762824788593,-699.1,0.00019757,2]
[393592888,1762824788604,-699.1,0.00019757,2]
[393592889,1762824788614,-699.1,0.00019757,2]
[393592890,1762824788624,-699.1,0.00019757,2]
[393592891,1762824788636,-715.57,0.00019757,2]
[393592892,1762824788646,-807.34,0.00020187,2]
[393592893,1762824788656,-153.85,0.00020197,2]
[393592894,1762824788667,-478.32096809,0.0002022,2]
[393592895,1762824788677,-989.4660097,0.00020291,2]
[393592896,1762824788687,-591.66573016,0.000205,2]
[393592897,1762824788697,-61010.40339,0.00020514,2]
[393592899,1762824788707,-1000.0,0.00020546,2]
[393592900,1762824788717,-152.08,0.00020795,2]
[393592901,1762824788727,-220.7797092,0.0002081,2]
[393592902,1762824788737,-171.99,0.00021,2]
[393592903,1762824788747,-350.0,0.00021,2]
[393592904,1762824788757,-2000.0,0.00021,2]
[393592905,1762824788767,-6353.55687192,0.00021,2]
[393592906,1762824788777,-17793.80478939,0.00021,2]
[393592907,1762824788787,-150.0,0.0002108,2]
[393592908,1762824788796,-13613.2610791,0.00021082,2]
[393592909,1762824788807,-300.0,0.00021117,2]
[393592910,1762824788817,-300.0,0.00021119,2]
[393592911,1762824788828,-300.0,0.00021205,2]
[393592912,1762824788838,-300.0,0.00021223,2]
[393592913,1762824788848,-150.0,0.00021253,2]
[393592914,1762824788858,-150.0,0.00021277,2]
[393592915,1762824788870,-300.0,0.00021297,2]
[393592916,1762824788881,-200.0,0.00021327,2]
[393592917,1762824788895,-820.0,0.0002135,2]
[393592918,1762824788906,-1597.0,0.0002135,2]
[393592919,1762824788916,-1274.0,0.0002135,2]
[393592920,1762824788927,-813.0,0.0002135,2]
[393592921,1762824788939,-55300.70728678,0.000215,2]
[393592922,1762824788949,-220.10156471,0.000215,2]
[393592924,1762824788959,-157.0,0.000215,3]
[393592925,1762824788970,-157.0,0.000215,3]
[393592926,1762824788981,-153.85,0.00021639,2]
[393592927,1762824788991,-150.99,0.00021757,2]
[393592928,1762824789001,-5000.0,0.00021918,2]
[393592929,1762824789011,-500.0,0.00021999,2]
[393592930,1762824789021,-518.17506924,0.00021999,2]
[393592931,1762824789031,-162.71,0.00022,4]
[393592932,1762824789041,-549.72911848,0.00022,3]
[393592933,1762824789051,-3416.39568531,0.00022,3]
[393592934,1762824789062,-166.66,0.00022018,2]
[393592935,1762824789072,-1000.0,0.00022601,2]
[393592936,1762824789082,-166.66,0.00022745,2]
[393592937,1762824789092,-400.0,0.00023,2]
[393592938,1762824789102,-153.85,0.00023082,2]
[393592939,1762824789111,-166.66,0.00023472,2]
[393592940,1762824789120,-4821.12954329,0.00024,2]
[393592941,1762824789130,-2000.0,0.00024,2]
[393592942,1762824789141,-166.66,0.00024199,2]
[393592943,1762824789152,-820.0,0.0002435,2]
[393592944,1762824789163,-1597.0,0.0002435,2]
[393592945,1762824789173,-1274.0,0.0002435,2]
[393592946,1762824789183,-813.0,0.0002435,2]
[393592947,1762824789193,-153.85,0.00024525,2]
[393592948,1762824789203,-1000.0,0.00024656,2]
[393592949,1762824789213,-189.04,0.00024658,2]
[393592950,1762824789223,-1000.0,0.00024658,2]
[393592951,1762824789232,-2000.0,0.000247,2]
[393592952,1762824789242,-500.0,0.00024799,2]
[393592953,1762824789251,-500.0,0.00024799,2]
[393592954,1762824789261,-354078.536843,0.000248,3]
[393592955,1762824789278,-517282.535161,0.000249,3]
[393592956,1762824789288,-166.66,0.00024926,2]
[393592957,1762824789297,-1000.0,0.00025,6]
[393592958,1762824789306,-1000.0,0.00025,6]
[393592959,1762824789318,-1000.0,0.00025,6]
[393592960,1762824789327,-601.66586946,0.00025,2]
[393592961,1762824789337,-205.12407632,0.00025,2]
[393592962,1762824789349,-1645.96284142,0.00025,2]
[393592963,1762824789359,-17074.48537125,0.00025,2]
[393592964,1762824789369,-166.66,0.00025652,2]
[393592965,1762824789378,-153.85,0.00025967,2]
[393592966,1762824789390,-4470.86752103,0.00026,2]
[393592967,1762824789399,-152.0,0.00026675,3]
[393592968,1762824789409,-807.34,0.00026676,2]
[393592969,1762824789418,-820.0,0.0002735,2]
[393592970,1762824789428,-1597.0,0.0002735,2]
[393592971,1762824789437,-1274.0,0.0002735,2]
[393592972,1762824789446,-813.0,0.0002735,2]
[393592973,1762824789456,-300.0,0.00027397,2]
[393592974,1762824789466,-2654.89,0.000274,2]
[393592975,1762824789476,-1428.64630632,0.00027777,2]
[393592976,1762824789486,-1750.7,0.00027855,2]
[393592977,1762824789496,-482.0,0.00028,3]
[393592978,1762824789506,-4000.000001,0.00028,2]
[393592979,1762824789516,-158.90650951,0.00028,60]
[393592980,1762824789526,-477.51,0.00028371,2]
[393592981,1762824789536,-864.74,0.00028371,2]
[393592982,1762824789545,-699.1,0.00028371,2]
[393592983,1762824789555,-477.51,0.00028371,2]
[393592984,1762824789565,-477.51,0.00028371,2]
[393592985,1762824789574,-699.1,0.00028371,2]
[393592986,1762824789584,-477.51,0.00028371,2]
[393592987,1762824789595,-1398.2,0.00028371,2]
[393592988,1762824789604,-483.48,0.00028371,2]
[393592989,1762824789614,-2000.0,0.000284,2]
[393592990,1762824789623,-151.66363284,0.00028754,2]
[393592991,1762824789634,-152.0,0.00028835,4]
[393592992,1762824789643,-2654.89,0.000292,2]
[393592993,1762824789653,-28438.14339616,0.000294,5]
[393592994,1762824789663,-302.58424204,0.0003,2]
[393592995,1762824789672,-5069.60937178,0.0003,2]
[393592996,1762824789682,-820.0,0.0003035,2]
[393592997,1762824789691,-1597.0,0.0003035,2]
[393592998,1762824789701,-1274.0,0.0003035,2]
[393592999,1762824789710,-813.0,0.0003035,2]
[393593000,1762824789720,-152.0,0.00030995,5]
[393593001,1762824789839,-150.0,0.00031,2]
[393593002,1762824789849,-340.55,0.00031111,2]
[393593003,1762824789859,-1093.24,0.00031111,2]
[393593004,1762824789868,-547.99,0.00031111,2]
[393593005,1762824789877,-150.0,0.00031111,2]
[393593006,1762824789889,-831.78,0.00031111,2]
[393593007,1762824789898,-177.04,0.00031111,2]
[393593008,1762824789907,-177.04,0.00031111,2]
[393593009,1762824789916,-549.24,0.00031111,2]
[393593010,1762824789926,-177.04,0.00031111,2]
[393593011,1762824789935,-353.98,0.00031111,2]
[393593012,1762824789945,-2654.89,0.000312,2]
[393593013,1762824789955,-188.24843534,0.0003137,5]
[393593014,1762824789964,-12635.53754969,0.0003143,4]
[393593015,1762824789974,-150.0,0.00031996,2]
[393593016,1762824789984,-150.0,0.00031996,2]
[393593017,1762824789994,-150.0,0.00032,2]
[393593018,1762824790003,-1354.0,0.000321,2]
[393593019,1762824790013,-500.0,0.000322,2]
[393593020,1762824790023,-150.0,0.00032818,2]
[393593021,1762824790032,-150.0,0.00032818,2]
[393593022,1762824790043,-150.0,0.00032818,2]
[393593023,1762824790051,-300.55,0.00032818,2]
[393593024,1762824790062,-150.0,0.00033,2]
[393593025,1762824790071,-152.0,0.00033154,6]
[393593026,1762824790081,-807.34,0.00033165,2]
[393593027,1762824790090,-2654.89,0.000332,2]
[393593028,1762824790099,-820.0,0.0003335,2]
[393593029,1762824790109,-1597.0,0.0003335,2]
[393593030,1762824790118,-1274.0,0.0003335,2]
[393593031,1762824790127,-813.0,0.0003335,2]
[393593032,1762824790140,-150.0,0.00034,2]
[393593033,1762824790150,-20200.12688195,0.00034,2]
[393593034,1762824790159,-500.0,0.00034612,7]
[393593035,1762824790169,-500.0,0.00034776,7]
[393593036,1762824790177,-150.0,0.00035,2]
[393593037,1762824790185,-150.0,0.00035,2]
[393593038,1762824790194,-64729.05478018,0.00035,5]
[393593039,1762824790204,-500.0,0.00035031,30]
[393593040,1762824790214,-1354.51018863,0.000358,2]
[393593041,1762824790223,-500.0,0.00035999,2]
[393593042,1762824790232,-6610.0,0.00036,5]
[393593043,1762824790242,-820.0,0.0003635,2]
[393593044,1762824790252,-1597.0,0.0003635,2]
[393593045,1762824790261,-1274.0,0.0003635,2]
[393593046,1762824790274,-813.0,0.0003635,2]
[393593047,1762824790283,-5000.0,0.00036384,2]
[393593048,1762824790292,-153.0,0.00036445,2]
[393593049,1762824790301,-153.0,0.00036445,2]
[393593050,1762824790312,-153.0,0.00036445,2]
[393593051,1762824790321,-153.0,0.00036445,2]
[393593052,1762824790330,-153.0,0.00036445,2]
[393593053,1762824790340,-153.0,0.00036445,2]
[393593054,1762824790350,-153.0,0.00036445,2]